fUSD/lending_fUSD_20240630
["ID","MTS","AMOUNT","RATE_DAILY","PERIOD"]
[330741711,1719749453919,-526.2,0.00014099,3]
[330741712,1719749453928,-945.0,0.00014099,3]
[330741713,1719749453939,-500.0,0.00014099,3]
[330741714,1719749453949,-1433.5,0.00014099,3]
[330741715,1719749453959,-1269.12,0.00014099,3]
[330741716,1719749453968,-3343.31,0.00014099,3]
[330741717,1719749453979,-1472.03,0.00014099,3]
[330741718,1719749453989,-1666.35,0.00014099,3]
[330741719,1719749454000,-155.42488452,0.00014099,2]
[330741720,1719749454010,-500.0,0.000141,3]
[330741721,1719749454021,-903.18,0.000141,3]
[330741722,1719749454032,-560.45,0.000141,3]
[330741723,1719749454042,-500.0,0.000141,3]
[330741724,1719749454052,-2542.44,0.000141,3]
[330741725,1719749454062,-258.73197226,0.00014106,2]
[330741726,1719749454073,-576.0,0.0001411,2]
[330741727,1719749454083,-22497.0,0.00014121,2]
[330741728,1719749454093,-500.0,0.00014206,3]
[330741729,1719749454104,-500.0,0.00014206,3]
[330741730,1719749454114,-500.0,0.00014206,3]
[330741731,1719749454125,-500.0,0.00014206,3]
[330741732,1719749454135,-500.0,0.00014206,3]
[330741733,1719749454145,-500.0,0.00014206,3]
[330741734,1719749454155,-500.0,0.00014206,3]
[330741735,1719749454165,-500.0,0.00014206,3]
[330741736,1719749454176,-500.0,0.00014206,3]
[330741737,1719749454186,-500.0,0.00014206,3]
[330741738,1719749454196,-500.0,0.00014206,3]
[330741739,1719749454206,-664.32,0.00014206,3]
[330741740,1719749454217,-500.0,0.00014206,3]
[330741741,1719749454227,-500.0,0.00014206,3]
[330741742,1719749454238,-313.45927963,0.00014206,3]
[330741743,1719749454248,-677.08,0.00014206,3]
[330741744,1719749454259,-500.0,0.00014206,3]
[330741745,1719749454269,-461.0353469,0.00014206,3]
[330741746,1719749454906,-38.9646531,0.00014206,3]
[330741747,1719749454917,-151.0,0.00014206,2]
[330741748,1719749454927,-500.0,0.00014206,3]
[330741749,1719749454937,-500.0,0.00014206,3]
[330741750,1719749454947,-752.49,0.00014206,3]
[330741751,1719749454956,-500.0,0.00014206,3]
[330741752,1719749454967,-151.0,0.00014206,2]
[330741753,1719749454977,-199.353864,0.00014206,2]
[330741754,1719749454988,-500.0,0.00014206,3]
[330741755,1719749454998,-500.0,0.00014206,3]
[330741756,1719749455008,-500.0,0.00014206,3]
[330741757,1719749455018,-151.0,0.00014206,2]
[330741758,1719749455029,-500.0,0.00014206,3]
[330741759,1719749455038,-500.0,0.00014206,3]
[330741760,1719749455049,-500.0,0.00014206,3]
[330741761,1719749455059,-500.0,0.00014206,3]
[330741762,1719749455069,-500.0,0.00014206,3]
[330741763,1719749455079,-575.32,0.00014206,3]
[330741764,1719749455089,-500.0,0.00014206,3]
[330741765,1719749455100,-500.0,0.00014206,3]
[330741766,1719749455110,-500.0,0.00014206,3]
[330741767,1719749455120,-500.0,0.00014206,3]
[330741768,1719749455130,-500.0,0.00014206,3]
[330741769,1719749455140,-151.0,0.00014206,2]
[330741770,1719749455151,-659.45,0.00014206,3]
[330741771,1719749455161,-500.0,0.00014206,3]
[330741772,1719749455171,-588.26,0.00014206,3]
[330741773,1719749455181,-500.0,0.00014206,3]
[330741774,1719749455191,-151.0,0.00014206,2]
[330741775,1719749455201,-500.0,0.00014206,3]
[330741776,1719749455211,-500.0,0.00014206,3]
[330741777,1719749455221,-151.0,0.00014206,2]
[330741778,1719749455231,-500.0,0.00014206,3]
[330741779,1719749455241,-500.0,0.00014206,3]
[330741780,1719749455251,-500.0,0.00014206,3]
[330741781,1719749455261,-500.0,0.00014206,3]
[330741782,1719749455271,-151.0,0.00014206,2]
[330741783,1719749455283,-500.0,0.00014206,3]
[330741784,1719749455293,-500.0,0.00014206,3]
[330741785,1719749455303,-216.7909272,0.00014206,3]
[330741786,1719749455324,-283.2090728,0.00014206,3]
[330741787,1719749455334,-67.4109272,0.00014206,3]
[330741788,1719749455347,-130.43332439,0.00014206,3]
[330741789,1719749455664,-500.0,0.00014206,3]
[330741790,1719749455674,-500.0,0.00014206,3]
[330741791,1719749455684,-500.0,0.00014206,3]
[330741792,1719749455694,-500.0,0.00014206,3]
[330741793,1719749455704,-151.0,0.00014206,2]
[330741794,1719749455714,-167.16667561,0.00014206,3]
[330741795,1719749455726,-332.83332439,0.00014206,3]
[330741796,1719749455736,-463.08680997,0.00014206,3]
[330741797,1719749456284,-36.91319003,0.00014206,3]
[330741798,1719749456294,-500.0,0.00014206,3]
[330741799,1719749456303,-500.0,0.00014206,3]
[330741800,1719749456319,-151.0,0.00014206,2]
[330741801,1719749456328,-500.0,0.00014206,3]
[330741802,1719749456337,-151.0,0.00014206,2]
[330741803,1719749456346,-528.08231327,0.00014206,3]
[330741804,1719749456358,-7.01768673,0.00014206,3]
[330741805,1719749456367,-500.0,0.00014206,3]
[330741806,1719749456376,-500.0,0.00014206,3]
[330741807,1719749456386,-500.0,0.00014206,3]
[330741808,1719749456395,-500.0,0.00014206,3]
[330741809,1719749456405,-239.2037586,0.00014206,3]
[330741810,1719749456415,-500.0,0.00014206,3]
[330741811,1719749456424,-151.0,0.00014206,2]
[330741812,1719749456433,-310.02855467,0.00014206,3]
[330741813,1719749456446,-189.97144533,0.00014206,3]
[330741814,1719749456459,-500.0,0.00014206,3]
[330741815,1719749456468,-500.0,0.00014206,3]
[330741816,1719749456477,-500.0,0.00014206,3]
[330741817,1719749456486,-60.02855467,0.00014206,3]
[330741818,1719749456499,-439.97144533,0.00014206,3]
[330741819,1719749456508,-500.0,0.00014206,3]
[330741820,1719749456518,-500.0,0.00014206,3]
[330741821,1719749456529,-367.20059389,0.00014206,3]
[330741822,1719749456539,-184.46355678,0.00014206,3]
[330741823,1719749456551,-315.53644322,0.00014206,3]
[330741824,1719749456561,-151.0,0.00014206,2]
[330741825,1719749456570,-500.0,0.00014206,3]
[330741826,1719749456580,-500.0,0.00014206,3]
[330741827,1719749456591,-553.67,0.00014206,3]
[330741828,1719749456601,-500.0,0.00014206,3]
[330741829,1719749456611,-527.84355678,0.00014206,3]
[330741830,1719749456633,-268.54644322,0.00014206,3]
[330741831,1719749456642,-1001.57,0.00014206,3]
[330741832,1719749456652,-142.11308643,0.00014206,3]
[330741834,1719749456664,-358.46691357,0.00014206,3]
[330741835,1719749456672,-400.92909168,0.00014206,3]
[330741836,1719749456696,-99.07090832,0.00014206,3]
[330741837,1719749456705,-657.32,0.00014206,3]
[330741838,1719749456714,-309.16523414,0.00014206,3]
[330741839,1719749456734,-323.25476586,0.00014206,3]
[330741840,1719749456743,-500.0,0.00014206,3]
[330741841,1719749456752,-500.0,0.00014206,3]
[330741842,1719749456761,-961.77,0.00014206,3]
[330741843,1719749456772,-500.0,0.00014206,3]
[330741844,1719749456783,-926.29,0.00014206,3]
[330741845,1719749456792,-1077.16,0.00014206,3]
[330741846,1719749456802,-623.86,0.00014206,3]
[330741847,1719749456811,-500.0,0.00014206,3]
[330741848,1719749456820,-500.0,0.00014206,3]
[330741849,1719749456830,-151.0,0.00014206,2]
[330741850,1719749456839,-571.06,0.00014206,3]
[330741851,1719749456849,-500.0,0.00014206,3]
[330741852,1719749456859,-500.0,0.00014206,3]
[330741853,1719749456869,-500.0,0.00014206,3]
[330741854,1719749456878,-151.0,0.00014206,2]
[330741855,1719749456889,-151.0,0.00014206,2]
[330741856,1719749456900,-500.0,0.00014206,3]
[330741857,1719749456909,-1004.2,0.00014206,3]
[330741858,1719749456921,-500.0,0.00014206,3]
[330741859,1719749456930,-250.0,0.00014206,3]
[330741860,1719749456940,-500.0,0.00014206,3]
[330741861,1719749456949,-500.0,0.00014206,3]
[330741862,1719749456959,-721.18,0.00014206,3]
[330741863,1719749456968,-500.0,0.00014206,3]
[330741864,1719749456977,-500.0,0.00014206,3]
[330741865,1719749456986,-500.0,0.00014206,3]
[330741866,1719749456995,-595.9,0.00014206,3]
[330741867,1719749457004,-500.0,0.00014206,3]
[330741868,1719749457014,-727.96,0.00014206,3]
[330741869,1719749457024,-500.0,0.00014206,3]
[330741870,1719749457034,-696.32,0.00014206,3]
[330741871,1719749457044,-500.0,0.00014206,3]
[330741872,1719749457053,-500.0,0.00014206,3]
[330741873,1719749457062,-500.0,0.00014206,3]
[330741874,1719749457072,-500.0,0.00014206,3]
[330741875,1719749457081,-500.0,0.00014206,3]
[330741876,1719749457090,-254.32351,0.00014206,2]
[330741877,1719749457100,-500.0,0.00014206,3]
[330741878,1719749457111,-500.0,0.00014206,3]
[330741879,1719749457122,-500.0,0.00014206,3]
[330741880,1719749457133,-500.0,0.00014206,3]
[330741881,1719749457143,-500.0,0.00014206,3]
[330741882,1719749457152,-304.93464467,0.00014206,3]
[330741941,1719749729024,558.33,0.0001052,2]
[330741948,1719749771053,155.13135445,0.0001052,2]
[330741949,1719749774071,1110.5395145,0.0001052,2]
[330741950,1719749778667,1366.31409354,0.0001052,2]
[330741951,1719749778764,290.46265469,0.0001052,2]
[330741953,1719749848088,-37967.42614776,0.00011199,2]
[330741956,1719749924589,18225.23079513,0.00011199,2]
[330741957,1719750009796,25311.61743184,0.00011199,2]
[330741960,1719750183823,524.39988055,0.00011199,2]
[330741961,1719750196806,21093.01452653,0.00011199,2]
[330741965,1719750320518,196.25132,0.0002189,120]
[330741966,1719750330837,1341.97557487,0.00011199,2]
[330741968,1719750371617,16803.60521964,0.00011199,2]
[330741969,1719750397037,530.41,0.00010616,2]
[330741970,1719750406243,1909.66923536,0.00011199,2]
[330741971,1719750434168,10989.46056832,0.00011199,2]
[330741973,1719750453401,442.40862375,0.00011199,2]
[330741974,1719750464788,-300.0,0.00012201,2]
[330741975,1719750464810,-150.0,0.00012202,2]
[330741976,1719750464834,-1000.0,0.00012302,2]
[330741977,1719750464854,-368.41430848,0.00012302,2]
[330741978,1719750464875,-304.23744085,0.00012302,2]
[330741979,1719750464896,-526.547858,0.00012314,2]
[330741980,1719750464917,-544.30071955,0.00012314,2]
[330741981,1719750464939,-21806.49967312,0.00012466,2]
[330741982,1719750465059,544.02769694,0.00011199,2]
[330741983,1719750465990,900.0,0.00011199,2]
[330741984,1719750470051,236.54372154,0.00011199,2]
[330741985,1719750476800,7550.89023268,0.00011199,2]
[330741987,1719750494870,290.51868998,0.00011199,2]
[330741988,1719750531411,660.50574852,0.00011199,2]
[330741990,1719750543306,4458.61712229,0.00011199,2]
[330741991,1719750567144,953.18301802,0.00011199,2]
[330741992,1719750575912,4713.24960871,0.00011199,2]
[330741993,1719750579547,4323.87381609,0.00011199,2]
[330741994,1719750584821,430.84989623,0.00011199,2]
[330741995,1719750590238,3107.73443509,0.00011199,2]
[330741996,1719750593771,7550.89023268,0.00011199,2]
[330741997,1719750607076,249.62568508,0.00011199,2]
[330741998,1719750619694,795.39303922,0.00011199,2]
[330741999,1719750628511,171.51180165,5e-05,2]
[330742004,1719750632657,-300.0,0.00012201,2]
[330742005,1719750632667,-162.53216332,0.00012202,2]
[330742006,1719750632678,-2000.0,0.00012202,2]
[330742007,1719750632704,-11731.65197619,0.00012202,2]
[330742008,1719750632743,-280.56667432,0.00012202,2]
[330742016,1719750638585,-2257.26239699,0.00012202,2]
[330742017,1719750638595,-205.32220319,0.00012302,2]
[330742018,1719750638605,-328.27409759,0.00012302,2]
[330742019,1719750638615,-212.31357594,0.00012302,2]
[330742020,1719750638624,-1013.16514783,0.00012302,2]
[330742021,1719750638634,-1802.58439959,0.00012302,2]
[330742022,1719750638645,-227.04865744,0.00012302,2]
[330742023,1719750638655,-159.95883883,0.00012314,2]
[330742024,1719750638665,-155.0,0.00012314,2]
[330742025,1719750638675,-307.9844612,0.00012314,2]
[330742026,1719750638685,-2093.50032688,0.00012466,2]
[330742027,1719750638695,-250.0,0.00012532,2]
[330742028,1719750638705,-9999.99,0.00012532,2]
[330742029,1719750638716,-1162.9,0.00012606,2]
[330742030,1719750638725,-323.58,0.00012674,2]
[330742031,1719750638735,-500.0,0.00012724,2]
[330742032,1719750638745,-347.15,0.00012772,2]
[330742033,1719750638754,-555.51,0.00012772,2]
[330742034,1719750638763,-530.41,0.0001288,2]
[330742035,1719750638772,-150.99,0.0001288,2]
[330742036,1719750638782,-250.0,0.00012889,2]
[330742037,1719750638791,-1974.92,0.00012898,2]
[330742038,1719750638800,-740.63865152,0.00013006,2]
[330742039,1719750638815,-157.41,0.00013123,2]
[330742040,1719750638825,-155.0,0.00013128,2]
[330742041,1719750638834,-10989.46056832,0.00013128,2]
[330742043,1719750638844,-10989.46056832,0.00013128,2]
[330742045,1719750638854,-4217.65555531,0.00013128,2]
[330742046,1719750638864,-1000.0,0.00013153,2]
[330742047,1719750638873,-420.0,0.00013391,2]
[330742048,1719750638883,-955.85753929,0.00013472,2]
[330742049,1719750638895,-1000.0,0.00013472,2]
[330742050,1719750638905,-2113.06045672,0.00013472,2]
[330742051,1719750638915,-4210.1270146,0.00013472,2]
[330742052,1719750638924,-482.94283217,0.00013516,2]
[330742053,1719750638933,-155.0,0.00013516,2]
[330742054,1719750638943,-155.14555532,0.00013516,2]
[330742055,1719750638953,-523.35652933,0.00013516,2]
[330742056,1719750638964,-155.61523961,0.00013516,2]
[330742057,1719750638973,-159.13015457,0.00013516,2]
[330742058,1719750638984,-331.64709839,0.00013516,2]
[330742060,1719750638994,-368.47136735,0.00013516,2]
[330742062,1719750639003,-340.839913,0.00013574,2]
[330742063,1719750639013,-530.25634475,0.00013574,2]
[330742065,1719750639023,-295.0,0.00013574,2]
[330742066,1719750639033,-449.99559938,0.00013574,2]
[330742067,1719750639044,-155.0,0.00013574,2]
[330742068,1719750639054,-296.02262439,0.00013574,2]
[330742069,1719750639065,-216.77769792,0.00013574,2]
[330742070,1719750639075,-183.71260699,0.00013574,2]
[330742071,1719750639085,-496.10852137,0.00013574,2]
[330742072,1719750639096,-155.0,0.00013574,2]
[330742073,1719750639107,-3035.88040959,0.00013574,2]
[330742074,1719750639117,-258.6748,0.00013686,2]
[330742075,1719750639127,-978.62,0.00013699,2]
[330742076,1719750639137,-483.69,0.00013699,2]
[330742077,1719750639147,-384.20872226,0.00013756,2]
[330742078,1719750639158,-3344.1558,0.00013787,2]
[330742079,1719750639168,-2500.0,0.00013787,2]
[330742080,1719750639182,-6378.08653768,0.00013799,2]
[330742081,1719750639193,-1075.5965,0.000138,2]
[330742082,1719750639203,-11678.9782,0.00013886,2]
[330742083,1719750639216,-1000.0,0.00013886,2]
[330742084,1719750639229,-374.8776,0.00013886,2]
[330742085,1719750639240,-6984.1206,0.00013886,2]
[330742086,1719750639250,-157.6773932,0.00013887,2]
[330742087,1719750639260,-303.51660676,0.00013887,2]
[330742088,1719750639271,-1000.0,0.00013887,2]
[330742089,1719750639283,-500.0,0.00013887,2]
[330742090,1719750639293,-2260.1104,0.00013887,2]
[330742091,1719750639302,-40775.7773,0.00013887,2]
[330742092,1719750639312,-209.56,0.00013975,2]
[330742093,1719750639322,-209.56,0.00013976,2]
[330742094,1719750639332,-209.56,0.00013976,2]
[330742095,1719750639343,-209.56,0.00013977,2]
[330742096,1719750639354,-418.96968753,0.0001398,2]
[330742097,1719750639364,-718.47,0.00013984,3]
[330742098,1719750639375,-500.0,0.00013984,3]
[330742099,1719750639384,-500.0,0.00013984,3]
[330742100,1719750639394,-737.07,0.00013984,3]
[330742101,1719750639404,-907.21,0.00013984,3]
[330742102,1719750639414,-541.81,0.00013984,3]
[330742103,1719750639423,-500.0,0.00013984,3]
[330742104,1719750639433,-1157.69,0.00013984,3]
[330742105,1719750639443,-500.0,0.00013984,3]
[330742106,1719750639453,-947.3,0.00013984,3]
[330742107,1719750639465,-500.0,0.00013984,3]
[330742108,1719750639475,-500.0,0.00013984,3]
[330742109,1719750639484,-1219.53,0.00013984,3]
[330742110,1719750639495,-819.05,0.00013985,3]
[330742111,1719750639505,-899.52,0.00013985,3]
[330742112,1719750639515,-500.0,0.00013985,3]
[330742113,1719750639525,-743.22,0.00013985,3]
[330742114,1719750639537,-4025.85,0.00013985,3]
[330742115,1719750639547,-500.0,0.00013985,3]
[330742116,1719750639557,-500.0,0.00013985,3]
[330742117,1719750639567,-821.92,0.00013985,3]
[330742118,1719750639577,-575.15,0.00013985,3]
[330742119,1719750639587,-2497.07,0.00013985,3]
[330742120,1719750639596,-500.0,0.00013985,3]
[330742121,1719750639606,-810.5,0.00013985,3]
[330742122,1719750639616,-500.0,0.00013985,3]
[330742123,1719750639625,-500.0,0.00013985,3]
[330742124,1719750639635,-1866.58,0.00013985,3]
[330742125,1719750639645,-636.97,0.00013985,3]
[330742126,1719750639655,-878.68,0.00013985,3]
[330742127,1719750639664,-500.0,0.00013985,3]
[330742128,1719750639674,-500.0,0.00013985,3]
[330742129,1719750639683,-500.0,0.00013985,3]
[330742130,1719750639693,-500.0,0.00013985,3]
[330742131,1719750639703,-1209.95,0.00013985,3]
[330742132,1719750639716,-727.02,0.00013985,3]
[330742133,1719750639725,-614.03,0.00013985,3]
[330742134,1719750639735,-793.02,0.00013985,3]
[330742135,1719750639748,-500.0,0.00013985,3]
[330742136,1719750639757,-922.39,0.00013985,3]
[330742137,1719750639767,-500.0,0.00013985,3]
[330742138,1719750639777,-604.46,0.00013985,3]
[330742139,1719750639788,-773.87,0.00013985,3]
[330742140,1719750639798,-927.09,0.00013985,3]
[330742141,1719750639810,-720.54,0.00013985,3]
[330742142,1719750639821,-500.0,0.00013985,3]
[330742143,1719750639831,-1414.79,0.00013985,3]
[330742144,1719750639841,-500.0,0.00013985,3]
[330742145,1719750639851,-731.81,0.00013985,3]
[330742146,1719750639861,-699.0,0.00013985,3]
[330742147,1719750639872,-500.0,0.00013985,3]
[330742148,1719750639882,-500.0,0.00013985,3]
[330742149,1719750639892,-615.03,0.00013985,3]
[330742150,1719750639902,-818.98,0.00013985,3]
[330742151,1719750639912,-510.61069197,0.00013985,3]
[330742152,1719750639922,-500.0,0.00013985,3]
[330742153,1719750639932,-645.07,0.00013985,3]
[330742154,1719750639942,-500.0,0.00013985,3]
[330742155,1719750639952,-500.0,0.00013985,3]
[330742156,1719750639965,-500.0,0.00013985,3]
[330742157,1719750639975,-598.47,0.00013985,3]
[330742158,1719750639985,-500.0,0.00013985,3]
[330742159,1719750639994,-5589.73,0.00013985,3]
[330742160,1719750640004,-500.0,0.00013985,3]
[330742161,1719750640014,-531.91,0.00013985,3]
[330742162,1719750640024,-500.0,0.00013985,3]
[330742163,1719750640034,-500.0,0.00013985,3]
[330742164,1719750640044,-500.0,0.00013985,3]
[330742165,1719750640054,-500.0,0.00013985,3]
[330742166,1719750640064,-500.0,0.00013985,3]
[330742167,1719750640074,-553.05,0.00013985,3]
[330742168,1719750640084,-500.0,0.00013985,3]
[330742169,1719750640093,-500.0,0.00013985,3]
[330742170,1719750640103,-500.0,0.00013985,3]
[330742171,1719750640112,-603.35,0.00013985,3]
[330742172,1719750640122,-500.0,0.00013985,3]
[330742173,1719750640131,-500.0,0.00013985,3]
[330742174,1719750640141,-500.0,0.00013985,3]
[330742175,1719750640151,-370.89,0.00013985,3]
[330742176,1719750640161,-500.0,0.00013985,3]
[330742177,1719750640171,-904.73,0.00013985,3]
[330742178,1719750640182,-1388.66,0.00013985,3]
[330742179,1719750640191,-500.0,0.00013985,3]
[330742180,1719750640202,-500.0,0.00013985,3]
[330742181,1719750640214,-847.18,0.00013985,3]
[330742182,1719750640223,-761.72,0.00013985,3]
[330742183,1719750640235,-725.2,0.00013985,3]
[330742184,1719750640245,-538.86,0.00013985,3]
[330742185,1719750640255,-587.13,0.00013985,3]
[330742186,1719750640265,-1170.92,0.00013985,3]
[330742187,1719750640275,-611.7771037,0.00013985,3]
[330742188,1719750640285,-500.0,0.00013985,3]
[330742189,1719750640294,-500.0,0.00013985,3]
[330742190,1719750640304,-500.0,0.00013985,3]
[330742191,1719750640315,-500.0,0.00013985,3]
[330742192,1719750640325,-500.0,0.00013985,3]
[330742193,1719750640335,-500.0,0.00013985,3]
[330742194,1719750640345,-500.0,0.00013985,3]
[330742195,1719750640354,-500.0,0.00013985,3]
[330742196,1719750640364,-1095.54,0.00013985,3]
[330742197,1719750640375,-637.45,0.00013985,3]
[330742198,1719750640386,-500.0,0.00013985,3]
[330742199,1719750640396,-1356.09,0.00013985,3]
[330742200,1719750640406,-948.47,0.00013985,3]
[330742201,1719750640416,-500.0,0.00013985,3]
[330742202,1719750640426,-500.0,0.00013985,3]
[330742203,1719750640436,-500.0,0.00013985,3]
[330742204,1719750640446,-500.0,0.00013985,3]
[330742205,1719750640457,-500.0,0.00013985,3]
[330742206,1719750640468,-1293.87,0.00013985,3]
[330742207,1719750640478,-653.7,0.00013985,3]
[330742208,1719750640488,-500.0,0.00013985,3]
[330742209,1719750640498,-541.71,0.00013985,3]
[330742210,1719750640508,-1032.79,0.00013985,3]
[330742211,1719750640518,-294.26099692,0.00013985,3]
[330742212,1719750640528,-500.0,0.00013985,3]
[330742213,1719750640538,-500.0,0.00013985,3]
[330742214,1719750640548,-500.0,0.00013985,3]
[330742215,1719750640558,-500.0,0.00013985,3]
[330742216,1719750640568,-500.0,0.00013985,3]
[330742217,1719750640578,-500.0,0.00013985,3]
[330742218,1719750640588,-609.03,0.00013985,3]
[330742219,1719750640598,-500.0,0.00013985,3]
[330742220,1719750640608,-500.0,0.00013985,3]
[330742221,1719750640618,-1756.13,0.00013985,3]
[330742222,1719750640627,-951.47,0.00013985,3]
[330742223,1719750640637,-557.1404149,0.00013985,3]
[330742224,1719750640647,-814.75,0.00013985,3]
[330742225,1719750640657,-937.32,0.00013985,3]
[330742226,1719750640667,-866.68,0.00013985,3]
[330742227,1719750640676,-500.0,0.00013985,3]
[330742228,1719750640686,-500.0,0.00013985,3]
[330742229,1719750640696,-500.0,0.00013985,3]
[330742230,1719750640706,-1085.35,0.00013985,3]
[330742231,1719750640716,-500.0,0.00013985,3]
[330742232,1719750640726,-500.0,0.00013985,3]
[330742233,1719750640736,-500.0,0.00013985,3]
[330742234,1719750640746,-1406.95,0.00013985,3]
[330742235,1719750640755,-500.0,0.00013985,3]
[330742236,1719750640765,-500.0,0.00013985,3]
[330742237,1719750640775,-500.0,0.00013985,3]
[330742238,1719750640785,-500.0,0.00013985,3]
[330742239,1719750640794,-500.0,0.00013985,3]
[330742240,1719750640803,-500.0,0.00013985,3]
[330742241,1719750640815,-1697.74,0.00013985,3]
[330742242,1719750640825,-786.16,0.00013985,3]
[330742243,1719750640834,-500.0,0.00013985,3]
[330742244,1719750640844,-500.0,0.00013985,3]
[330742245,1719750640855,-500.0,0.00013985,3]
[330742246,1719750640864,-500.0,0.00013985,3]
[330742247,1719750640874,-598.83,0.00013985,3]
[330742248,1719750640883,-1349.13,0.00013985,3]
[330742249,1719750640895,-500.0,0.00013985,3]
[330742250,1719750640905,-161.16166681,0.00013985,3]
[330742251,1719750640915,-1314.04,0.00013985,3]
[330742252,1719750640924,-370.47962927,0.00013985,3]
[330742253,1719750640934,-500.0,0.00013985,3]
[330742254,1719750640943,-500.0,0.00013985,3]
[330742255,1719750640952,-830.2,0.00013985,3]
[330742256,1719750640963,-500.0,0.00013985,3]
[330742257,1719750640973,-500.0,0.00013985,3]
[330742258,1719750640982,-800.97,0.00013985,3]
[330742259,1719750640991,-912.65,0.00013985,3]
[330742260,1719750641001,-500.0,0.00013985,3]
[330742261,1719750641011,-3306.84,0.00013985,3]
[330742262,1719750641020,-500.0,0.00013985,3]
[330742263,1719750641029,-364.16027196,0.00013985,3]
[330742264,1719750641038,-500.0,0.00013985,3]
[330742265,1719750641048,-1293.14,0.00013985,3]
[330742266,1719750641057,-500.0,0.00013985,3]
[330742267,1719750641066,-500.0,0.00013985,3]
[330742268,1719750641075,-500.0,0.00013985,3]
[330742269,1719750641084,-500.0,0.00013985,3]
[330742270,1719750641094,-500.0,0.00013985,3]
[330742271,1719750641103,-500.0,0.00013985,3]
[330742272,1719750641113,-500.0,0.00013985,3]
[330742273,1719750641123,-290.81608876,0.00013985,3]
[330742274,1719750641132,-500.0,0.00013985,3]
[330742275,1719750641142,-696.84,0.00013985,3]
[330742276,1719750641152,-500.0,0.00013985,3]
[330742277,1719750641161,-500.0,0.00013985,3]
[330742278,1719750641171,-500.0,0.00013985,3]
[330742279,1719750641180,-1527.49,0.00013985,3]
[330742280,1719750641191,-500.0,0.00013985,3]
[330742281,1719750641201,-500.0,0.00013985,3]
[330742282,1719750641212,-841.55,0.00013985,3]
[330742283,1719750641222,-942.52,0.00013986,3]
[330742284,1719750641233,-500.0,0.00013986,3]
[330742285,1719750641243,-500.0,0.00013986,3]
[330742286,1719750641252,-865.17,0.00013986,3]
[330742287,1719750641262,-500.0,0.00013986,3]
[330742288,1719750641271,-722.01,0.00013986,3]
[330742289,1719750641280,-500.0,0.00013986,3]
[330742290,1719750641290,-500.0,0.00013986,3]
[330742291,1719750641300,-625.96,0.00013986,3]
[330742292,1719750641309,-579.65,0.00013986,3]
[330742293,1719750641319,-762.72,0.00013986,3]
[330742294,1719750641328,-738.06,0.00013986,3]
[330742295,1719750641338,-500.0,0.00013986,3]
[330742296,1719750641347,-478.12178168,0.00013986,3]
[330742297,1719750641363,-197.75821832,0.00013986,3]
[330742298,1719750641372,-500.0,0.00013986,3]
[330742299,1719750641382,-824.59,0.00013986,3]
[330742300,1719750641391,-500.0,0.00013986,3]
[330742301,1719750641401,-326.0522448,0.00013986,3]
[330742302,1719750641486,-173.9477552,0.00013986,3]
[330742303,1719750641495,-717.94,0.00013986,3]